bitfinex-derivatives/quotes_BTCF0:USTF0_20210703
["timestamp","ask_amount","ask_price","bid_price","bid_amount"]
[1625328391945,0.116,34540.0,34539.0,0.24057544]
[1625328392045,0.057,34540.0,34539.0,0.24057544]
[1625328395099,0.116,34540.0,34539.0,0.24057544]
[1625328395300,0.057,34540.0,34539.0,0.24057544]
[1625328395402,0.175,34540.0,34539.0,0.24057544]
[1625328395500,0.175,34540.0,34534.0,0.68074777]
[1625328395602,2.35103773,34540.0,34533.0,1.2616971]
[1625328395701,2.35103773,34540.0,34533.0,0.24057544]
[1625328396055,0.50200609,34537.0,34533.0,0.24057544]
[1625328396152,0.057,34536.0,34533.0,0.24057544]
[1625328396253,0.175,34536.0,34533.0,0.24057544]
[1625328396602,0.116,34536.0,34533.0,0.24057544]
[1625328397303,0.48115088,34534.0,34533.0,0.24057544]
[1625328397404,0.59715088,34534.0,34533.0,0.24057544]
[1625328397604,0.53815088,34534.0,34533.0,0.24057544]
[1625328398705,0.59715088,34534.0,34533.0,0.24057544]
[1625328398805,0.53815088,34534.0,34533.0,0.24057544]
[1625328399711,0.53815088,34534.0,34533.0,0.24400729]
[1625328403925,0.48115088,34534.0,34533.0,0.24400729]
[1625328404068,0.53815088,34534.0,34533.0,0.24400729]
[1625328405368,0.59715088,34534.0,34533.0,0.24400729]
[1625328405469,0.53815088,34534.0,34533.0,0.24400729]
[1625328406019,0.59715088,34534.0,34533.0,0.24400729]
[1625328406669,0.53815088,34534.0,34533.0,0.24400729]
[1625328407320,0.48115088,34534.0,34533.0,0.24400729]
[1625328407923,0.48115088,34534.0,34533.0,0.47878729]
[1625328408426,0.48115088,34534.0,34533.0,1.67183348]
[1625328410178,0.48115088,34534.0,34533.0,2.69498976]
[1625328410480,0.24057544,34534.0,34533.0,2.69498976]
[1625328410586,0.24057544,34534.0,34533.0,1.67183348]
[1625328410696,0.50279634,34536.0,34533.0,1.73083348]
[1625328410882,0.67007506,34537.0,34533.0,2.81299608]
[1625328410883,0.5026484,34537.0,34533.0,2.81299608]
[1625328411132,0.5026484,34537.0,34534.0,0.00343136]
[1625328411283,0.5026484,34537.0,34534.0,0.12143136]
[1625328411395,1.17350676,34540.0,34536.0,2.45721541]
[1625328411482,1.17350676,34540.0,34536.0,2.51621541]
[1625328411685,1.17356267,34541.0,34539.0,0.51152143]
[1625328411785,1.17356267,34541.0,34539.0,0.57052143]
[1625328412033,0.50296308,34540.0,34539.0,0.059]
[1625328412283,0.50296308,34540.0,34539.0,0.06243116]
[1625328412382,0.50296308,34540.0,34539.0,0.57394694]
[1625328412784,1.1734648,34541.0,34539.0,0.57394694]
[1625328413086,1.1734648,34541.0,34540.0,0.00343128]
[1625328413185,0.5028815,34541.0,34540.0,0.26435128]
[1625328413437,0.5028815,34541.0,34540.0,0.50492672]
[1625328413940,1.17333295,34541.0,34540.0,0.50492672]
[1625328414340,0.5028815,34541.0,34540.0,0.50492672]
[1625328416200,0.5598815,34541.0,34540.0,0.50492672]
[1625328416501,0.6188815,34541.0,34540.0,0.50492672]
[1625328416652,1.23018278,34541.0,34540.0,0.50492672]
[1625328416804,1.34818278,34541.0,34540.0,0.50492672]
[1625328417304,2.29419783,34541.0,34540.0,0.50492672]
[1625328418053,1.28918278,34541.0,34540.0,0.50492672]
[1625328418153,1.34818278,34541.0,34540.0,0.50492672]
[1625328418254,1.59290278,34541.0,34540.0,0.24400672]
[1625328418357,2.5980903,34541.0,34540.0,0.24400672]
[1625328418706,3.77013319,34541.0,34540.0,0.24400672]
[1625328418953,3.78729157,34541.0,34540.0,0.24400672]
[1625328419254,3.77013319,34541.0,34540.0,0.24400672]
[1625328420559,3.77013319,34541.0,34540.0,0.00343128]
[1625328420658,3.78729263,34541.0,34540.0,0.00343128]
[1625328420960,3.78729263,34541.0,34538.0,0.00343204]
[1625328421061,5.12504144,34541.0,34538.0,0.00343204]
[1625328421167,5.12504144,34541.0,34537.0,0.24057544]
[1625328421409,0.24057544,34538.0,34537.0,0.24057544]
[1625328421511,0.35657544,34538.0,34537.0,0.24057544]
[1625328421662,5.0960076,34538.0,34537.0,0.24057544]
[1625328421761,5.11316873,34538.0,34537.0,0.24400767]
[1625328422064,5.11316873,34538.0,34537.0,7.67e-06]
[1625328422268,5.11316873,34538.0,34529.0,0.51162778]
[1625328422414,0.059,34537.0,34529.0,0.51162778]
[1625328422514,0.059,34537.0,34530.0,0.00343261]
[1625328422665,1.42818814,34531.0,34530.0,0.00343261]
[1625328422765,1.60318814,34531.0,34530.0,0.00343261]
[1625328423015,3.7738012,34531.0,34526.0,0.00343269]
[1625328423417,0.72172632,34527.0,34526.0,0.00343269]
[1625328423514,2.06552942,34527.0,34526.0,0.00343269]
[1625328424166,2.06552942,34527.0,34525.0,0.00343274]
[1625328424419,2.06552942,34527.0,34526.0,0.00343284]
[1625328424617,2.08269522,34527.0,34525.0,0.00343316]
[1625328424818,5.58267195,34527.0,34525.0,0.00343316]
[1625328424917,5.58267195,34527.0,34526.0,0.00343323]
[1625328425221,5.56550615,34527.0,34521.0,0.00343331]
[1625328425369,0.48115088,34522.0,34521.0,0.00343331]
[1625328425470,0.81546088,34522.0,34520.0,0.00343331]
[1625328425570,0.87446088,34522.0,34520.0,0.00343331]
[1625328425670,2.04148462,34522.0,34521.0,0.00343327]
[1625328425974,2.04148462,34522.0,34520.0,0.00343339]
[1625328426071,3.04150723,34522.0,34520.0,0.00343339]
[1625328426371,1.16674165,34521.0,34520.0,0.00343339]
[1625328426472,1.34174165,34521.0,34520.0,0.00343339]
[1625328427023,1.34174165,34521.0,34518.0,0.34118523]
[1625328427374,0.48115088,34519.0,34518.0,0.34118523]
[1625328427474,0.59715088,34519.0,34518.0,0.34118523]
[1625328427574,0.65615088,34519.0,34518.0,0.34118523]
[1625328427675,0.98954944,34519.0,34518.0,0.8531225]
[1625328428579,1.8221651,34519.0,34517.0,0.34129664]
[1625328428978,1.48901771,34519.0,34517.0,0.34129664]
[1625328429430,1.48901771,34519.0,34518.0,0.34126831]
[1625328429830,1.15589505,34519.0,34518.0,0.34126831]
[1625328430281,1.48915694,34519.0,34518.0,0.34126831]
[1625328430683,0.98941277,34519.0,34517.0,0.85304301]
[1625328431282,0.93041277,34519.0,34518.0,0.34121653]
[1625328431733,0.59715088,34519.0,34518.0,0.51181147]
[1625328432034,0.65615088,34519.0,34518.0,0.51181147]
[1625328432235,0.59715088,34519.0,34518.0,0.51181147]
[1625328432435,0.59715088,34519.0,34518.0,1.19422455]
[1625328432536,0.53815088,34519.0,34518.0,1.19422455]
[1625328433791,0.53815088,34519.0,34518.0,3.41125376]
[1625328435500,0.48115088,34519.0,34518.0,3.41125376]
[1625328435698,0.48115088,34519.0,34518.0,3.47025376]
[1625328435848,0.48115088,34519.0,34518.0,4.77534601]
[1625328435947,0.48115088,34519.0,34518.0,4.77877885]
[1625328436350,0.48115088,34519.0,34518.0,4.83777885]
[1625328436649,0.48115088,34519.0,34518.0,4.77877885]
[1625328436850,0.48115088,34519.0,34518.0,4.83777885]
[1625328437000,0.48115088,34519.0,34518.0,4.77877885]
[1625328437503,0.24057544,34519.0,34518.0,5.01935429]
[1625328438151,0.24057544,34519.0,34518.0,5.01592145]
[1625328438653,0.24057544,34519.0,34518.0,3.6518292]
[1625328438804,0.47229544,34519.0,34518.0,3.6518292]
[1625328441261,0.53129544,34519.0,34518.0,3.6518292]
[1625328441913,0.53129544,34519.0,34518.0,2.45804424]
[1625328442014,0.47229544,34519.0,34518.0,2.45804424]
[1625328442214,0.47229544,34519.0,34518.0,3.65124711]
[1625328442463,0.59029544,34519.0,34518.0,3.65124711]
[1625328442563,0.53129544,34519.0,34518.0,2.45804424]
[1625328442713,0.59029544,34519.0,34518.0,2.45804424]
[1625328442913,0.53129544,34519.0,34518.0,2.45804424]
[1625328443113,0.47229544,34519.0,34518.0,2.45804424]
[1625328443613,0.47229544,34519.0,34518.0,2.46147732]
[1625328444920,0.24057544,34519.0,34518.0,2.46147732]
[1625328445472,0.24057544,34519.0,34518.0,3.6546949]
[1625328445971,0.24057544,34519.0,34518.0,5.01825864]
[1625328450579,0.29757544,34519.0,34518.0,5.01825864]
[1625328450679,0.24057544,34519.0,34518.0,5.01825864]
[1625328450780,0.29957544,34519.0,34518.0,5.01825864]
[1625328450879,0.24057544,34519.0,34518.0,5.01825864]
[1625328451130,0.24057544,34519.0,34518.0,3.6546949]
[1625328451580,0.24057544,34519.0,34518.0,2.46147732]
[1625328451883,0.29957544,34519.0,34518.0,2.46147732]
[1625328452081,0.29957544,34519.0,34518.0,3.65513215]
[1625328452181,0.24057544,34519.0,34518.0,3.65513215]
[1625328452331,0.29957544,34519.0,34518.0,3.65513215]
[1625328452431,0.24057544,34519.0,34518.0,3.65513215]
[1625328453634,0.29957544,34519.0,34518.0,3.65513215]
[1625328453935,0.29957544,34519.0,34518.0,2.46147732]
[1625328454136,0.24057544,34519.0,34518.0,2.46147732]
[1625328454286,0.24057544,34519.0,34518.0,3.65524193]
[1625328455189,0.24057544,34519.0,34518.0,2.46147732]
[1625328456189,0.29957544,34519.0,34518.0,2.46147732]
[1625328458645,0.24057544,34519.0,34518.0,2.46147732]
[1625328461505,0.35657544,34519.0,34518.0,2.22090188]
[1625328461758,0.41557544,34519.0,34518.0,2.22090188]
[1625328462005,1.59267427,34519.0,34518.0,0.00343308]
[1625328462609,2.60152416,34519.0,34518.0,0.00343308]
[1625328463005,2.6186936,34519.0,34517.0,0.00343389]
[1625328463155,3.79565279,34519.0,34517.0,0.00343389]
[1625328463257,3.79565279,34519.0,34518.0,0.00343389]
[1625328463505,1.59253463,34519.0,34515.0,0.00343389]
[1625328463606,0.24057544,34516.0,34515.0,0.00343389]
[1625328463705,1.53371115,34516.0,34515.0,0.00343389]
[1625328463854,1.59271115,34516.0,34514.0,0.51174267]
[1625328464005,1.59271115,34516.0,34515.0,0.00343393]
[1625328464106,1.0882004,34516.0,34515.0,0.00343393]
[1625328464457,1.59267686,34516.0,34515.0,0.00343393]
[1625328465360,1.59267686,34516.0,34514.0,0.17398793]
[1625328465460,1.53367686,34516.0,34514.0,0.17398793]
[1625328465668,0.8610519,34516.0,34515.0,0.00343385]
[1625328465816,0.8610519,34516.0,34515.0,0.31922385]
[1625328466070,0.35657544,34516.0,34515.0,0.83085388]
[1625328466271,0.29757544,34516.0,34515.0,0.83085388]
[1625328466420,0.29757544,34516.0,34515.0,0.88985388]
[1625328466620,0.24057544,34516.0,34515.0,0.88985388]
[1625328466721,0.50492677,34517.0,34515.0,0.88985388]
[1625328466921,0.50492677,34517.0,34516.0,0.00343324]
[1625328467022,0.24057544,34519.0,34516.0,0.06243324]
[1625328467423,0.24057544,34519.0,34518.0,2.21701967]
[1625328467621,0.24057544,34519.0,34518.0,2.45759511]
[1625328467772,0.24057544,34519.0,34518.0,2.46102848]
[1625328467922,0.29957544,34519.0,34518.0,2.46102848]
[1625328468071,0.24057544,34519.0,34518.0,2.46102848]
[1625328468171,0.29957544,34519.0,34518.0,2.46102848]
[1625328468274,0.29957544,34519.0,34518.0,1.43778863]
[1625328469023,0.80464152,34519.0,34518.0,1.0967554]
[1625328469672,0.57723008,34519.0,34518.0,0.24400881]
[1625328469773,0.24057544,34519.0,34518.0,0.24400881]
[1625328470174,0.24057544,34519.0,34518.0,1.43807283]
[1625328470175,0.40901901,34519.0,34518.0,1.43807283]
[1625328471676,0.74592062,34519.0,34518.0,1.43807283]
[1625328472529,0.40901901,34519.0,34518.0,1.43807283]
[1625328472878,0.74546522,34519.0,34518.0,1.43807283]
[1625328473179,0.80246522,34519.0,34518.0,1.43807283]
[1625328473328,0.86146522,34519.0,34518.0,1.43807283]
[1625328473529,0.86146522,34519.0,34518.0,0.75575053]
[1625328473530,1.53347048,34519.0,34518.0,0.75575053]
[1625328473831,2.60067231,34519.0,34518.0,0.75575053]
[1625328474129,2.60067231,34519.0,34518.0,0.75632803]
[1625328474629,2.54167231,34519.0,34518.0,0.75632803]
[1625328474880,2.54167231,34519.0,34518.0,1.09785633]
[1625328474982,2.48267231,34519.0,34518.0,1.09785633]
[1625328475134,2.42567231,34519.0,34518.0,1.09785633]
[1625328475232,0.74498304,34519.0,34518.0,3.66151788]
[1625328475431,0.74498304,34519.0,34518.0,3.77951788]
[1625328475682,0.74581077,34519.0,34518.0,3.77951788]
[1625328475985,0.24057544,34519.0,34518.0,5.14672477]
[1625328476082,0.24057544,34519.0,34518.0,5.08772477]
[1625328476782,0.24057544,34519.0,34518.0,0.30300881]
[1625328477133,0.24057544,34519.0,34518.0,5.08817913]
[1625328477638,0.74642192,34519.0,34518.0,5.08817913]
[1625328478185,0.74616468,34519.0,34518.0,5.02917913]
[1625328478335,0.80516468,34519.0,34518.0,5.02917913]
[1625328478439,0.24057544,34519.0,34518.0,5.02917913]
[1625328478536,2.43036889,34519.0,34518.0,3.66198761]
[1625328478638,2.48936889,34519.0,34518.0,3.66198761]
[1625328478737,2.48936889,34519.0,34518.0,3.65855424]
[1625328478987,2.48936889,34519.0,34518.0,3.66198763]
[1625328479086,2.04298012,34519.0,34518.0,3.66198763]
[1625328479187,1.98398012,34519.0,34518.0,3.66198763]
[1625328479438,3.72863208,34519.0,34518.0,3.66198763]
[1625328479689,3.66963208,34519.0,34518.0,3.66198763]
[1625328480039,3.72863208,34519.0,34518.0,3.66198763]
[1625328480143,3.66963208,34519.0,34518.0,3.66198763]
[1625328480392,3.72863208,34519.0,34518.0,3.66198763]
[1625328480592,3.78563208,34519.0,34518.0,3.66198763]
[1625328480693,4.06435208,34519.0,34518.0,3.66198763]
[1625328480795,5.41149929,34519.0,34518.0,2.46569505]
[1625328480893,5.35249929,34519.0,34518.0,2.46569505]
[1625328481292,5.41149929,34519.0,34518.0,2.46569505]
[1625328481596,5.41149929,34519.0,34518.0,1.44030141]
[1625328481845,5.35249929,34519.0,34518.0,2.4676346]
[1625328481946,5.41149929,34519.0,34518.0,2.4676346]
[1625328482049,5.35249929,34519.0,34518.0,2.4676346]
[1625328482348,4.00535208,34519.0,34518.0,2.4676346]
[1625328482449,4.06435208,34519.0,34518.0,2.4676346]
[1625328482549,4.00535208,34519.0,34518.0,2.4676346]
[1625328482651,3.66763208,34519.0,34518.0,2.4676346]
[1625328483050,3.66763208,34519.0,34518.0,3.66624459]
[1625328483750,3.61063208,34519.0,34518.0,3.66624459]
[1625328483852,3.66963208,34519.0,34518.0,3.66624459]
[1625328483950,3.66763208,34519.0,34518.0,3.66624459]
[1625328488262,3.61063208,34519.0,34518.0,3.66624459]
[1625328488463,2.43074312,34519.0,34518.0,5.03608057]
[1625328488663,2.43074312,34519.0,34518.0,5.09508057]
[1625328489112,2.43074312,34519.0,34518.0,5.15408057]
[1625328489213,1.42013399,34519.0,34518.0,5.09508057]
[1625328489365,1.42013399,34519.0,34518.0,5.15408057]
[1625328489464,1.17955855,34519.0,34518.0,5.09508057]
[1625328489714,1.17955855,34519.0,34518.0,5.39465601]
[1625328489864,0.59186716,34519.0,34518.0,6.93555812]
[1625328490166,0.084649,34519.0,34518.0,6.93555812]
[1625328490620,0.59197953,34520.0,34518.0,6.93555812]
[1625328490868,0.59197953,34520.0,34519.0,0.00343281]
[1625328490969,0.2538392,34520.0,34519.0,6.3378546]
[1625328491118,0.2538392,34520.0,34519.0,6.4558546]
[1625328491370,0.59240946,34521.0,34519.0,6.4558546]
[1625328491721,0.59272246,34522.0,34520.0,6.57486045]
[1625328491820,0.59272246,34522.0,34520.0,6.63386045]
[1625328491920,0.59272246,34522.0,34521.0,0.00343267]
[1625328492120,0.59272246,34522.0,34521.0,6.67658845]
[1625328492271,0.59272246,34522.0,34521.0,6.73558845]
[1625328492370,0.25414477,34522.0,34521.0,6.73558845]
[1625328492572,0.67698617,34524.0,34521.0,6.73558845]
[1625328492971,0.67698617,34524.0,34522.0,0.00343243]
[1625328493222,0.67705017,34526.0,34523.0,5.81934266]
[1625328493424,0.67705017,34526.0,34523.0,5.87834266]
[1625328493522,0.67705017,34526.0,34525.0,4.27885483]
[1625328493672,0.67705017,34526.0,34525.0,4.33785483]
[1625328493823,0.67705017,34526.0,34525.0,4.88143786]
[1625328493925,1.18532999,34531.0,34525.0,6.42172584]
[1625328494377,1.42621048,34532.0,34530.0,2.84982947]
[1625328494476,1.42621048,34532.0,34530.0,2.96782947]
[1625328494576,0.24057544,34532.0,34531.0,2.56961041]
[1625328494773,0.24057544,34532.0,34531.0,2.62861041]
[1625328495225,0.24057544,34532.0,34531.0,2.56961041]
[1625328495324,0.29757544,34532.0,34531.0,2.56961041]
[1625328495576,0.29757544,34532.0,34531.0,1.20098192]
[1625328495724,0.29757544,34532.0,34531.0,1.44155736]
[1625328496025,0.29757544,34532.0,34531.0,1.50055736]
[1625328496126,0.29757544,34532.0,34531.0,1.44155736]
[1625328496376,1.48244901,34532.0,34531.0,0.24400743]
[1625328499131,1.54144901,34532.0,34531.0,0.24400743]
[1625328499280,1.54144901,34532.0,34531.0,0.24057544]
[1625328499633,2.89473333,34532.0,34531.0,0.24057544]
[1625328499933,2.83573333,34532.0,34531.0,0.24057544]
[1625328500033,2.89473333,34532.0,34531.0,0.24057544]
[1625328500333,0.35657544,34532.0,34531.0,0.24057544]
[1625328501183,2.83538597,34532.0,34531.0,0.24057544]
[1625328501284,2.89438597,34532.0,34531.0,0.24057544]
[1625328502334,3.16372597,34532.0,34528.0,1.19707787]
[1625328502435,0.62591544,34532.0,34526.0,0.53347544]
[1625328502535,0.62591544,34532.0,34526.0,0.24057544]
[1625328503188,1.35114904,34527.0,34526.0,0.24057544]
[1625328503287,2.59042556,34527.0,34526.0,0.24057544]
[1625328503437,2.70842556,34527.0,34526.0,0.24057544]
[1625328503838,2.890001,34527.0,34526.0,0.24057544]
[1625328503939,0.41557544,34527.0,34526.0,0.24057544]
[1625328504642,4.46635716,34527.0,34526.0,0.24057544]
[1625328505642,2.94733511,34527.0,34526.0,0.24057544]
[1625328506093,4.46647172,34527.0,34526.0,0.24057544]
[1625328506343,4.46647172,34527.0,34520.0,1.43788093]
[1625328506445,4.46647172,34527.0,34520.0,0.24057544]
[1625328506795,4.46647172,34527.0,34521.0,0.00343335]
[1625328507045,1.18163575,34522.0,34521.0,0.00343335]
[1625328507144,1.35663575,34522.0,34521.0,0.00343335]
[1625328507797,1.59721119,34522.0,34521.0,0.00343335]
[1625328507999,1.53821119,34522.0,34521.0,0.00343335]
[1625328508097,1.47921119,34522.0,34521.0,0.00343335]
[1625328508499,1.53821119,34522.0,34521.0,0.00343335]
[1625328509047,1.47921119,34522.0,34521.0,0.00343335]
[1625328509148,1.53821119,34522.0,34521.0,0.00343335]
[1625328509350,1.47921119,34522.0,34521.0,0.00343335]
[1625328509450,1.53821119,34522.0,34521.0,0.00343335]
[1625328509600,1.47921119,34522.0,34521.0,0.00343335]
[1625328509751,1.53821119,34522.0,34521.0,0.00343335]
[1625328510003,1.47921119,34522.0,34521.0,0.00343335]
[1625328510203,1.53821119,34522.0,34521.0,0.00343335]
[1625328510806,1.47921119,34522.0,34521.0,0.00343335]
[1625328512308,0.29757544,34522.0,34521.0,1.20089273]
[1625328512408,0.35657544,34522.0,34521.0,1.20089273]
[1625328512657,1.5385596,34522.0,34521.0,0.00343335]
[1625328514408,1.4795596,34522.0,34521.0,0.00343335]
[1625328514908,1.5385596,34522.0,34521.0,0.00343335]
[1625328515058,1.4795596,34522.0,34521.0,0.00343335]
[1625328515309,1.5385596,34522.0,34521.0,0.00343335]
[1625328515460,1.4795596,34522.0,34521.0,0.00343335]
[1625328515862,0.29757544,34522.0,34521.0,1.20089821]
[1625328517116,0.29757544,34522.0,34521.0,0.00343335]
[1625328517467,1.47979812,34522.0,34521.0,0.00343335]
[1625328517971,0.29757544,34522.0,34521.0,0.00343335]
[1625328518318,0.29757544,34522.0,34521.0,1.20087527]
[1625328518819,0.24057544,34522.0,34521.0,1.20087527]
[1625328520279,0.24057544,34522.0,34521.0,1.31887527]
[1625328520779,0.24057544,34522.0,34521.0,4.22638822]
[1625328521481,0.24057544,34527.0,34521.0,4.22638822]
[1625328521833,0.24057544,34527.0,34526.0,2.56490925]
[1625328521931,0.24057544,34527.0,34526.0,3.12118469]
[1625328522232,0.24057544,34527.0,34526.0,3.18018469]
[1625328522733,0.24057544,34527.0,34526.0,3.12118469]
[1625328522984,0.24057544,34527.0,34526.0,3.18018469]
[1625328523084,0.24057544,34527.0,34526.0,3.12118469]
[1625328524083,0.24057544,34527.0,34526.0,3.18018469]
[1625328524184,0.24057544,34527.0,34526.0,3.12118469]
[1625328524436,0.24057544,34527.0,34526.0,4.20600773]
[1625328524534,0.24057544,34527.0,34526.0,4.14700773]
[1625328524783,0.24057544,34527.0,34526.0,4.20600773]
[1625328525186,0.24057544,34527.0,34526.0,4.14700773]
[1625328525284,0.24057544,34527.0,34526.0,4.20600773]
[1625328525536,0.24057544,34527.0,34526.0,4.14700773]
[1625328525684,0.24057544,34527.0,34526.0,4.20600773]
[1625328525785,0.24057544,34527.0,34526.0,4.14700773]
[1625328526437,0.24057544,34527.0,34526.0,4.20600773]
[1625328526738,1.0155635,34530.0,34526.0,4.20600773]
[1625328526939,1.0155635,34530.0,34527.0,0.00343252]
[1625328527039,1.0155635,34530.0,34529.0,2.22266588]
[1625328527490,1.0155635,34530.0,34529.0,2.22609836]
[1625328527739,1.0155635,34530.0,34529.0,2.28509836]
[1625328527839,1.0155635,34530.0,34529.0,2.22609836]
[1625328527940,1.0155635,34530.0,34529.0,2.4666738]
[1625328528342,1.0155635,34530.0,34529.0,2.5256738]
[1625328528843,1.0155635,34530.0,34529.0,2.4666738]
[1625328529897,1.0155635,34530.0,34529.0,1.26985371]
[1625328533657,1.0155635,34530.0,34529.0,2.46625346]
[1625328534057,1.0155635,34530.0,34529.0,1.26985371]
[1625328534811,1.07274122,34531.0,34529.0,2.46624601]
[1625328535211,1.07274122,34531.0,34530.0,1.02547005]
[1625328535310,1.07274122,34531.0,34530.0,1.0289025]
[1625328536864,1.13174122,34531.0,34530.0,1.0289025]
[1625328536964,1.07274122,34531.0,34530.0,1.0289025]
[1625328543534,1.15984122,34531.0,34530.0,1.0289025]
[1625328543683,1.07274122,34531.0,34530.0,1.0289025]
[1625328546040,1.01574122,34531.0,34530.0,1.0289025]
[1625328546440,1.01574122,34531.0,34530.0,2.22532714]
[1625328546791,1.0138937,34533.0,34530.0,3.59273368]
[1625328547192,1.0138937,34533.0,34532.0,2.22199917]
[1625328547493,1.0138937,34533.0,34532.0,2.22543121]
[1625328547895,1.01440148,34534.0,34532.0,2.22543121]
[1625328547998,1.07340148,34534.0,34532.0,2.22543121]
[1625328548145,1.07340148,34534.0,34533.0,0.67419088]
[1625328548346,1.07340148,34534.0,34533.0,1.70307178]
[1625328550047,1.13040148,34534.0,34533.0,1.70307178]
[1625328552106,2.31305297,34534.0,34533.0,1.70307178]
[1625328552756,1.13040148,34534.0,34533.0,1.70307178]
[1625328554010,1.80629806,34534.0,34533.0,2.38666345]
[1625328557063,1.74929806,34534.0,34533.0,2.38666345]
[1625328558515,0.73489658,34534.0,34533.0,2.38666345]
[1625328559770,1.75155062,34534.0,34533.0,2.38666345]
[1625328560220,0.73489658,34534.0,34533.0,2.38666345]
[1625328560722,1.75195938,34534.0,34533.0,2.38666345]
[1625328561125,0.73489658,34534.0,34533.0,2.38666345]
[1625328561426,0.73489658,34534.0,34533.0,2.44566345]
[1625328561877,1.75301747,34534.0,34533.0,2.44566345]
[1625328562678,0.73489658,34534.0,34533.0,2.44566345]
[1625328562980,0.73489658,34534.0,34533.0,3.64147819]
[1625328564130,0.82089658,34534.0,34533.0,3.72867819]
[1625328564230,0.73489658,34534.0,34533.0,3.72867819]
[1625328564379,0.059,34534.0,34533.0,3.64147819]
[1625328565432,0.116,34534.0,34533.0,3.58247819]
[1625328565532,0.31329,34534.0,34533.0,3.58247819]
[1625328565734,0.99298876,34534.0,34533.0,3.58247819]
[1625328566334,3.20007754,34534.0,34533.0,1.36121457]
[1625328566434,3.20007754,34534.0,34533.0,1.16817457]
[1625328566585,3.25907754,34534.0,34533.0,1.16817457]
[1625328566884,3.25907754,34534.0,34533.0,0.4845829]
[1625328567234,3.27623936,34534.0,34533.0,0.4845829]
[1625328568589,4.63473479,34534.0,34533.0,0.4845829]
[1625328569589,4.63473479,34534.0,34533.0,0.00343202]
[1625328570392,6.16144338,34534.0,34533.0,0.00343202]
[1625328570792,6.16144338,34534.0,34530.0,0.00343289]
[1625328570992,0.01716449,34533.0,34530.0,0.00343289]
[1625328571092,0.13516449,34533.0,34530.0,0.00343289]
[1625328571191,0.057,34532.0,34530.0,0.00343289]
[1625328571341,4.240785,34531.0,34530.0,0.00343289]
[1625328571442,4.297785,34531.0,34530.0,0.00343289]
[1625328571594,4.37394945,34531.0,34530.0,0.00343289]
[1625328571942,5.90089356,34531.0,34530.0,0.00343289]
[1625328572142,6.141469,34531.0,34530.0,0.00343289]
[1625328573845,6.12430455,34531.0,34530.0,0.00343289]
[1625328574650,6.14146904,34531.0,34530.0,0.00343289]
[1625328574898,6.12430455,34531.0,34530.0,0.00343289]
[1625328575599,6.18330455,34531.0,34530.0,0.00343289]
[1625328577156,6.27020455,34531.0,34530.0,0.00343289]
[1625328577406,6.27020455,34531.0,34529.0,0.24057544]
[1625328577506,6.18330455,34531.0,34529.0,0.24057544]
[1625328577608,6.18330455,34531.0,34530.0,0.00343275]
[1625328578008,6.12430455,34531.0,34530.0,0.00343275]
[1625328578109,4.59736044,34531.0,34530.0,1.7150049]
[1625328579310,4.53836044,34531.0,34530.0,1.7150049]
[1625328579411,4.53836044,34531.0,34530.0,2.91351067]
[1625328582819,5.13639645,34531.0,34530.0,3.51347479]
[1625328583021,5.13639645,34531.0,34530.0,3.42717479]
[1625328584271,5.04909645,34531.0,34530.0,3.42717479]
[1625328588482,5.04909645,34531.0,34530.0,2.22866902]
[1625328591136,5.10809645,34531.0,34530.0,2.22866902]
[1625328591388,5.10809645,34531.0,34530.0,1.20172573]
[1625328593442,5.19559645,34531.0,34530.0,1.28952573]
[1625328593542,5.19559645,34531.0,34530.0,1.20172573]
[1625328593793,5.10809645,34531.0,34530.0,1.20172573]
[1625328596149,5.10809645,34531.0,34530.0,2.22893911]
[1625328598153,5.19579645,34531.0,34530.0,2.22893911]
[1625328598753,5.10809645,34531.0,34530.0,2.22893911]
[1625328600656,5.19389645,34531.0,34530.0,2.22893911]
[1625328601658,5.13489645,34531.0,34530.0,2.22893911]
[1625328601909,5.13489645,34531.0,34530.0,2.31643911]
[1625328602158,5.07789645,34531.0,34530.0,2.31643911]
[1625328602363,4.99209645,34531.0,34530.0,2.22893911]
[1625328602510,4.75152101,34531.0,34530.0,2.22893911]
[1625328602660,4.75152101,34531.0,34530.0,2.28793911]
[1625328602760,3.3945173,34531.0,34530.0,3.4862681]
[1625328603414,2.20711785,34531.0,34530.0,4.85566538]
[1625328604365,2.20711785,34531.0,34530.0,5.09624082]
[1625328605465,2.20711785,34531.0,34530.0,5.03724082]
[1625328606068,2.20711785,34531.0,34530.0,3.66784354]
[1625328606069,3.39733626,34531.0,34530.0,3.66784354]
[1625328607673,3.70951626,34531.0,34530.0,3.66784354]
[1625328607823,5.06931693,34531.0,34530.0,2.22893911]
[1625328607922,5.20448021,34531.0,34530.0,2.22893911]
[1625328608224,5.20448021,34531.0,34530.0,1.20172573]
[1625328608374,5.68563109,34531.0,34530.0,1.20172573]
[1625328608675,7.21376697,34531.0,34530.0,0.00343275]
[1625328609775,7.21376697,34531.0,34528.0,0.00343302]
[1625328610025,7.21376697,34531.0,34530.0,0.00343302]
[1625328610127,1.01629416,34531.0,34530.0,0.00343302]
[1625328610226,1.01629416,34531.0,34528.0,0.00343302]
[1625328610327,0.92849416,34531.0,34528.0,0.00343302]
[1625328610577,0.01716541,34530.0,34527.0,0.51699509]
[1625328610677,0.13516541,34530.0,34527.0,0.51699509]
[1625328610778,0.057,34529.0,34528.0,0.0034331]
[1625328610878,0.175,34529.0,34528.0,0.0034331]
[1625328611178,6.4468556,34529.0,34528.0,0.0034331]
[1625328611380,6.46402116,34529.0,34526.0,0.0034331]
[1625328611629,6.46402116,34529.0,34528.0,0.00343315]
[1625328611832,6.46402116,34529.0,34526.0,0.00343315]
[1625328612234,0.01716577,34528.0,34526.0,0.00343315]
[1625328612336,0.24057544,34527.0,34526.0,0.00343315]
[1625328612433,5.03864868,34527.0,34526.0,0.00343315]
[1625328612533,5.15664868,34527.0,34526.0,0.00343315]
[1625328612685,5.2614143,34527.0,34526.0,0.34574339]
[1625328612934,5.24424868,34527.0,34526.0,0.34574339]
[1625328613937,5.24424868,34527.0,34526.0,0.00343315]
[1625328614037,5.15664868,34527.0,34526.0,0.00343315]
[1625328614338,6.69589659,34527.0,34526.0,0.00343315]
[1625328614838,6.67873053,34527.0,34524.0,0.34225331]
[1625328615689,6.67873053,34527.0,34523.0,0.8556476]
[1625328615690,4.72974978,34525.0,34523.0,0.8556476]
[1625328615789,0.37052,34524.0,34523.0,0.8556476]
[1625328615889,0.42952,34524.0,34523.0,0.8556476]
[1625328615989,0.48852,34524.0,34523.0,0.8556476]
[1625328616139,6.7316178,34524.0,34521.0,0.34215852]
[1625328616441,0.72172632,34522.0,34521.0,0.34215852]
[1625328616591,5.62042019,34522.0,34521.0,0.34215852]
[1625328617292,7.13786433,34522.0,34519.0,0.34219066]
[1625328617641,7.13786433,34522.0,34517.0,0.68438132]
[1625328617642,4.72206626,34520.0,34517.0,0.8554907]
[1625328617793,0.057,34519.0,34517.0,0.8554907]
[1625328617892,0.175,34519.0,34517.0,0.8554907]
[1625328618194,4.71912699,34518.0,34517.0,0.34219628]
[1625328618292,4.83512699,34518.0,34517.0,0.34219628]
[1625328618394,5.07570243,34518.0,34517.0,0.34219628]